bitfinex-derivatives/quotes_BTCF0:USTF0_20260113
["timestamp","ask_amount","ask_price","bid_price","bid_amount"]
[1768268093130,0.010966,91298.0,91287.0,0.00965967]
[1768268093332,0.010966,91298.0,91287.0,0.10071786]
[1768268093636,0.01508887,91305.0,91287.0,0.09105819]
[1768268093940,0.00961269,91304.0,91287.0,0.09105819]
[1768268094437,0.010966,91295.0,91287.0,0.09105819]
[1768268095839,0.010966,91293.0,91287.0,0.09105819]
[1768268096045,0.010966,91293.0,91278.0,0.00241023]
[1768268096046,0.010967,91286.0,91278.0,0.00241023]
[1768268096237,0.010967,91286.0,91277.0,0.09105819]
[1768268096544,0.010968,91284.0,91277.0,0.09105819]
[1768268096731,0.010968,91284.0,91274.0,0.09868]
[1768268097342,0.010968,91282.0,91274.0,0.09868]
[1768268097540,0.010968,91284.0,91274.0,0.09868]
[1768268097843,0.010968,91284.0,91275.0,0.00965967]
[1768268098034,0.010968,91284.0,91275.0,0.10071786]
[1768268099247,0.010968,91284.0,91275.0,0.09105819]
[1768268099633,0.010968,91282.0,91274.0,0.09868]
[1768268099939,0.010968,91282.0,91271.0,0.00982395]
[1768268100142,0.010968,91282.0,91271.0,0.10088214]
[1768268101244,0.010968,91280.0,91271.0,0.00016428]
[1768268101745,0.010968,91280.0,91262.0,0.00965967]
[1768268102045,0.010968,91280.0,91263.0,0.10071786]
[1768268102347,0.010968,91278.0,91265.0,0.10071844]
[1768268103444,0.010969,91276.0,91265.0,0.10071844]
[1768268104946,0.09264236,91278.0,91258.0,0.09868]
[1768268105147,0.08575452,91281.0,91258.0,0.09868]
[1768268105148,0.08575452,91268.0,91258.0,0.09868]
[1768268105343,0.01097,91265.0,91258.0,0.09868]
[1768268105548,0.08575452,91270.0,91258.0,0.09868]
[1768268106045,0.01097,91266.0,91258.0,0.09868]
[1768268106247,0.09556481,91270.0,91256.0,0.00011476]
[1768268106555,0.08575452,91266.0,91256.0,0.00011476]
[1768268107338,0.01097,91264.0,91256.0,0.00011476]
[1768268107743,0.000114,91263.0,91249.0,0.09778503]
[1768268107946,0.08575452,91260.0,91250.0,0.1071862]
[1768268108348,0.010971,91259.0,91250.0,0.1071862]
[1768268108550,0.010971,91259.0,91248.0,0.00241102]
[1768268109251,0.01097,91262.0,91248.0,0.00241102]
[1768268109452,0.01097,91262.0,91248.0,0.00236102]
[1768268109649,0.00597,91262.0,91248.0,0.00236102]
[1768268110449,0.000114,91263.0,91248.0,0.00236102]
[1768268110748,0.08575452,91260.0,91248.0,0.10954722]
[1768268111050,0.01097,91262.0,91249.0,0.1071862]
[1768268111448,0.00597,91262.0,91249.0,0.1071862]
[1768268111951,0.00597,91262.0,91252.0,0.00940117]
[1768268112353,0.00597,91262.0,91251.0,0.09778503]
[1768268112559,0.000114,91263.0,91251.0,0.09778503]
[1768268112848,0.00981029,91256.0,91227.0,0.010974]
[1768268113052,0.00981029,91256.0,91225.0,0.10326601]
[1768268113053,0.08575452,91250.0,91231.0,0.09778503]
[1768268113247,0.08075452,91250.0,91231.0,0.09778503]
[1768268113448,0.08575452,91250.0,91231.0,0.09778503]
[1768268113647,0.010972,91246.0,91231.0,0.09778503]
[1768268114138,0.010972,91247.0,91231.0,0.09778503]
[1768268114346,0.010972,91247.0,91232.0,0.10027045]
[1768268115147,0.010973,91243.0,91232.0,0.10027045]
[1768268115544,0.08575452,91242.0,91232.0,0.10027045]
[1768268115749,0.010972,91247.0,91232.0,0.10027045]
[1768268115949,0.00981029,91251.0,91232.0,0.09074271]
[1768268115950,0.010973,91242.0,91232.0,0.09074271]
[1768268116144,0.00011476,91241.0,91232.0,0.09074271]
[1768268117448,0.010973,91238.0,91232.0,0.09074271]
[1768268117652,0.010973,91238.0,91229.0,0.09872]
[1768268117853,0.010973,91238.0,91227.0,0.10027045]
[1768268118156,0.010973,91238.0,91227.0,0.19899045]
[1768268118958,0.010973,91238.0,91228.0,0.10027045]
[1768268119656,0.010973,91238.0,91228.0,0.09074271]
[1768268119858,0.09672752,91240.0,91228.0,0.09074271]
[1768268120053,0.09672752,91240.0,91228.0,0.10027045]
[1768268120355,0.09672752,91240.0,91228.0,0.09074271]
[1768268120558,0.08575452,91240.0,91228.0,0.09074271]
[1768268120753,0.08575452,91240.0,91228.0,0.10027045]
[1768268120959,0.08575452,91240.0,91229.0,0.10027045]
[1768268121457,0.08575452,91240.0,91227.0,0.09872]
[1768268121659,0.010973,91239.0,91227.0,0.09872]
[1768268121859,0.010973,91237.0,91225.0,0.00548098]
[1768268122253,0.010974,91233.0,91216.0,0.19899045]
[1768268122559,0.010974,91233.0,91217.0,0.10027045]
[1768268122760,0.010974,91233.0,91218.0,0.10027127]
[1768268122962,0.010973,91237.0,91221.0,0.00952774]
[1768268123152,0.00011476,91241.0,91228.0,0.00952774]
[1768268123460,0.08575452,91250.0,91234.0,0.10027045]
[1768268123651,0.09872,91245.0,91238.0,0.00952774]
[1768268123857,0.09872,91252.0,91238.0,0.10027045]
[1768268124154,0.09872,91252.0,91241.0,0.10027045]
[1768268124956,0.09872,91252.0,91241.0,0.09074271]
[1768268125366,0.01097,91260.0,91244.0,0.09074271]
[1768268125554,0.09872,91261.0,91240.0,0.17150904]
[1768268125555,0.109689,91269.0,91253.0,0.10027045]
[1768268125749,0.010969,91269.0,91257.0,0.10027045]
[1768268125956,0.08575452,91270.0,91257.0,0.10027045]
[1768268126263,0.09872,91271.0,91260.0,0.08575452]
[1768268126560,0.010969,91275.0,91261.0,0.09074271]
[1768268127256,0.010969,91275.0,91261.0,0.10027045]
[1768268129759,0.08575452,91271.0,91261.0,0.09074271]
[1768268130063,0.010969,91270.0,91257.0,0.00952774]
[1768268130657,0.010969,91270.0,91257.0,0.10027045]
[1768268131659,0.09672352,91270.0,91257.0,0.10027045]
[1768268134564,0.08575452,91270.0,91257.0,0.10027045]
[1768268135668,0.08575452,91270.0,91258.0,0.00997108]
[1768268135872,0.11893162,91277.0,91259.0,0.00997108]
[1768268136166,0.109688,91277.0,91260.0,0.19161856]
[1768268136366,0.109688,91277.0,91261.0,0.00997108]
[1768268136564,0.09872,91277.0,91265.0,0.10586404]
[1768268137970,0.09872,91277.0,91265.0,0.09589296]
[1768268140073,0.109688,91277.0,91265.0,0.09589296]
[1768268140971,0.109688,91277.0,91262.0,0.00997108]
[1768268141376,0.109688,91277.0,91260.0,0.18164748]
[1768268142878,0.0025746,91278.0,91260.0,0.18164748]
[1768268143474,0.010968,91277.0,91260.0,0.18164748]
[1768268143877,0.010968,91277.0,91260.0,0.19161856]
[1768268144277,0.0025746,91278.0,91260.0,0.19161856]
[1768268144478,0.0025746,91278.0,91261.0,0.00997108]
[1768268144777,0.0025746,91278.0,91261.0,0.10586404]
[1768268144985,0.0025746,91278.0,91264.0,0.00997108]
[1768268145174,0.0025746,91278.0,91266.0,0.10586404]
[1768268145375,0.0025746,91278.0,91267.0,0.10586404]
[1768268145777,0.0025746,91278.0,91267.0,0.09589296]
[1768268145976,0.0025746,91278.0,91268.0,0.19161856]
[1768268146181,0.010968,91279.0,91269.0,0.10586404]
[1768268146478,0.010968,91279.0,91269.0,0.09589296]
[1768268146679,0.010968,91279.0,91265.0,0.00997108]
[1768268148489,0.010968,91279.0,91265.0,0.10586404]
[1768268149184,0.010969,91272.0,91259.0,0.19461296]
[1768268149389,0.08575452,91270.0,91259.0,0.19461296]
[1768268150188,0.00547858,91265.0,91247.0,0.10586404]
[1768268150487,0.09672452,91264.0,91255.0,0.09872]
[1768268151686,0.09672452,91264.0,91247.0,0.09589296]
[1768268151882,0.010971,91252.0,91231.0,0.20458404]
[1768268152077,0.00962223,91249.0,91231.0,0.20458404]
[1768268152589,0.08575452,91250.0,91232.0,0.10586404]
[1768268152985,0.08575452,91250.0,91233.0,0.10586404]
[1768268154288,0.010972,91249.0,91233.0,0.09589296]
[1768268154481,0.010972,91246.0,91233.0,0.09589296]
[1768268154886,0.10634875,91250.0,91233.0,0.09589296]
[1768268155993,0.09672652,91250.0,91233.0,0.09589296]
[1768268156692,0.09672652,91250.0,91233.0,0.10586404]
[1768268156989,0.010972,91248.0,91230.0,0.18447452]
[1768268157190,0.010972,91248.0,91231.0,0.10586404]
[1768268157394,0.010972,91248.0,91232.0,0.10586404]
[1768268158488,0.08575452,91242.0,91220.0,0.09672952]
[1768268158692,0.08575452,91240.0,91225.0,0.09872]
[1768268160796,0.08575452,91240.0,91210.0,0.85248]
[1768268160797,0.09672752,91240.0,91223.0,0.10586404]
[1768268161003,0.010973,91237.0,91223.0,0.19461296]
[1768268161289,0.010973,91241.0,91223.0,0.19461296]
[1768268162103,0.00962223,91243.0,91223.0,0.19461296]
[1768268162401,0.0905558,91244.0,91225.0,0.10586404]
[1768268163996,0.02059423,91247.0,91225.0,0.10586404]
[1768268164186,0.02059423,91247.0,91227.0,0.00997108]
[1768268164388,0.00962223,91246.0,91227.0,0.00997108]
[1768268164596,0.00944835,91245.0,91226.0,0.09589296]
[1768268165292,0.010972,91244.0,91226.0,0.09589296]
[1768268166495,0.02042035,91244.0,91226.0,0.09589296]
[1768268166698,0.00944835,91244.0,91226.0,0.09589296]
[1768268166902,0.010973,91238.0,91226.0,0.09589296]
[1768268167098,0.010973,91238.0,91218.0,8.2e-07]
[1768268167099,0.09210829,91233.0,91209.0,0.09782485]
[1768268167290,0.00944835,91227.0,91209.0,0.09782485]
[1768268167600,0.02042335,91226.0,91206.0,0.19658485]
[1768268167790,0.02042335,91226.0,91207.0,0.09782485]
[1768268167991,0.010974,91233.0,91207.0,0.09782485]
[1768268168593,0.00016437,91229.0,91209.0,0.09782485]
[1768268169094,0.00016437,91229.0,91210.0,0.00972415]
[1768268169288,0.00016437,91229.0,91211.0,0.09782485]
[1768268169498,0.00016437,91229.0,91213.0,0.09782485]
[1768268169698,0.00016437,91229.0,91214.0,0.00972415]
[1768268169894,0.00016437,91229.0,91215.0,0.09782485]
[1768268170100,0.00016437,91229.0,91217.0,0.09782485]
[1768268170401,0.00016437,91229.0,91218.0,0.00972415]
[1768268170604,0.00016437,91229.0,91218.0,0.107549]
[1768268170803,0.00016437,91229.0,91219.0,0.00972415]
[1768268171003,0.00016437,91229.0,91220.0,0.09782485]
[1768268171204,0.00016437,91229.0,91221.0,0.00972415]
[1768268171407,0.00016437,91229.0,91221.0,0.107549]
[1768268172105,0.09876,91237.0,91228.0,0.107549]
[1768268172304,0.010973,91240.0,91228.0,0.107549]
[1768268173704,0.02042235,91234.0,91218.0,0.09876]
[1768268174003,0.010974,91234.0,91219.0,0.00905136]
[1768268174202,0.00923548,91226.0,91210.0,0.09876]
[1768268174404,0.010975,91223.0,91207.0,0.09521745]
[1768268174600,0.00923548,91226.0,91207.0,0.09521745]
[1768268174906,0.00923548,91226.0,91207.0,0.10426881]
[1768268175211,0.10002989,91229.0,91208.0,0.10426881]
[1768268175503,0.09876,91232.0,91215.0,0.00905136]
[1768268175805,0.09876,91232.0,91216.0,0.10426881]
[1768268176199,0.010974,91229.0,91217.0,0.10426881]
[1768268179303,0.010974,91231.0,91221.0,0.10426881]
[1768268179512,0.09876,91236.0,91224.0,0.10426881]
[1768268179805,0.09876,91236.0,91207.0,0.00016437]
[1768268179806,0.010974,91229.0,91220.0,0.00905136]
[1768268179995,0.010974,91233.0,91221.0,0.10426881]
[1768268182112,0.010974,91231.0,91221.0,0.10426881]
[1768268182316,0.010974,91229.0,91218.0,0.00016437]
[1768268183610,0.010975,91224.0,91218.0,0.00016437]
[1768268184516,0.010974,91227.0,91218.0,0.00016437]
[1768268184714,0.00923548,91231.0,91214.0,0.09521745]
[1768268185113,0.00923548,91231.0,91209.0,0.10426881]
[1768268185716,0.00923548,91231.0,91210.0,0.00905136]
[1768268186110,0.00923548,91231.0,91210.0,0.10426881]
[1768268186310,0.010975,91223.0,91210.0,0.10426881]
[1768268187022,0.00923548,91229.0,91210.0,0.10426881]
[1768268187220,0.00923548,91229.0,91211.0,0.10426881]
[1768268187618,0.010975,91223.0,91211.0,0.10426881]
[1768268189323,0.010975,91220.0,91207.0,0.10426881]
[1768268189822,0.010975,91223.0,91207.0,0.10426881]
[1768268190123,0.010975,91223.0,91208.0,0.10426881]
[1768268190320,0.00923548,91227.0,91208.0,0.10426881]
[1768268190527,0.00923548,91227.0,91208.0,0.09521745]
[1768268190714,0.00923548,91226.0,91208.0,0.09521745]
[1768268190914,0.00016437,91232.0,91215.0,0.00905136]
[1768268191116,0.00016437,91232.0,91216.0,0.09521745]
[1768268191410,0.010974,91227.0,91205.0,0.00548219]
[1768268191727,0.00923548,91230.0,91199.0,0.10426881]
[1768268191728,0.010976,91215.0,91199.0,0.10426881]
[1768268192025,0.010976,91213.0,91199.0,0.10426881]
[1768268192224,0.010976,91211.0,91199.0,0.10426881]
[1768268192624,0.00923548,91219.0,91199.0,0.10426881]
[1768268192825,0.010976,91215.0,91200.0,0.10426881]
[1768268193027,0.010975,91218.0,91201.0,0.10426881]
[1768268193223,0.09079441,91221.0,91194.0,0.09876]
[1768268193224,0.10176941,91221.0,91202.0,0.10426881]
[1768268193417,0.010975,91221.0,91206.0,0.10426881]
[1768268193619,0.010975,91219.0,91206.0,0.10426881]
[1768268194123,0.00016446,91221.0,91208.0,0.10426881]
[1768268194319,0.010975,91220.0,91208.0,0.10426881]
[1768268194628,0.010975,91218.0,91208.0,0.09521745]
[1768268194817,0.00954158,91221.0,91202.0,0.09702481]
[1768268195017,0.010976,91214.0,91200.0,0.10624583]
[1768268195623,0.00937712,91209.0,91185.0,0.00376629]
[1768268195812,0.010977,91204.0,91185.0,0.00376629]
[1768268196018,0.02035412,91204.0,91185.0,0.1007911]
[1768268196226,0.02035412,91204.0,91185.0,0.11001212]
[1768268196424,0.00937712,91204.0,91185.0,0.11001212]
[1768268196728,0.010977,91206.0,91188.0,0.10624583]
[1768268197119,0.010977,91206.0,91189.0,0.10624583]
[1768268197517,0.00937712,91208.0,91189.0,0.10624583]
[1768268197518,0.010977,91207.0,91189.0,0.10624583]
[1768268197715,0.00937712,91204.0,91185.0,0.00376629]
[1768268198026,0.00937712,91202.0,91185.0,0.00376629]
[1768268198214,0.010977,91203.0,91185.0,0.11001212]
[1768268198422,0.010977,91203.0,91186.0,0.10624583]
[1768268198819,0.01114146,91203.0,91186.0,0.09724583]
[1768268199215,0.00937712,91202.0,91186.0,0.09702481]
[1768268199420,0.00016446,91203.0,91185.0,0.00376629]
[1768268199421,0.010977,91201.0,91185.0,0.1007911]
[1768268199823,0.00016446,91203.0,91185.0,0.1007911]
[1768268201124,0.00016446,91203.0,91185.0,0.10520849]
[1768268201330,0.00016446,91203.0,91187.0,0.09702481]
[1768268204534,0.01114146,91203.0,91187.0,0.09702481]
[1768268205540,0.01114146,91203.0,91187.0,0.10321187]
[1768268206637,0.010978,91201.0,91189.0,0.09702481]
[1768268208925,0.010978,91201.0,91189.0,0.10346279]
[1768268209125,0.010976,91210.0,91195.0,0.09702481]
[1768268209331,0.10813712,91216.0,91194.0,0.00643798]
[1768268209332,0.010977,91207.0,91197.0,0.09702481]
[1768268209532,0.010978,91201.0,91191.0,0.09702481]
[1768268209732,0.010978,91201.0,91187.0,0.10346279]
[1768268210343,0.13990867,91216.0,91196.0,0.10624583]
[1768268211538,0.010976,91215.0,91208.0,0.10624583]
[1768268211728,0.00241182,91218.0,91210.0,0.10624583]
[1768268212446,0.010976,91217.0,91210.0,0.10624583]
[1768268212642,0.010976,91217.0,91210.0,0.09702481]
[1768268213044,0.00548098,91225.0,91213.0,0.10624583]
[1768268213247,0.00548098,91225.0,91217.0,0.09702481]
[1768268213545,0.00548098,91225.0,91196.0,0.010978]
[1768268214446,0.010975,91221.0,91196.0,0.010928]
[1768268214739,0.010975,91221.0,91198.0,0.010978]
[1768268215335,0.010975,91221.0,91199.0,0.09702481]
[1768268216742,0.010975,91221.0,91201.0,0.09702481]
[1768268217236,0.010975,91220.0,91201.0,0.09702481]
[1768268218047,0.00548098,91225.0,91201.0,0.09702481]
[1768268219541,0.010975,91221.0,91201.0,0.09702481]
[1768268220544,0.010975,91223.0,91201.0,0.09702481]
[1768268221549,0.010975,91223.0,91204.0,0.09702481]
[1768268221752,0.00548098,91225.0,91206.0,0.09702481]
[1768268222048,0.010975,91226.0,91211.0,0.09702481]
[1768268222448,0.010975,91223.0,91211.0,0.09702481]
[1768268222648,0.09876,91233.0,91211.0,0.09702481]
[1768268222649,0.010975,91222.0,91211.0,0.09702481]
[1768268223348,0.00937712,91230.0,91211.0,0.09702481]
[1768268223349,0.010975,91219.0,91211.0,0.09702481]
[1768268224346,0.010975,91222.0,91211.0,0.09702481]
[1768268225548,0.09524332,91230.0,91206.0,0.09876]
[1768268225549,0.010975,91220.0,91206.0,0.09876]
[1768268226150,0.010975,91220.0,91207.0,0.09439878]
[1768268227757,0.010975,91223.0,91210.0,0.18026498]
[1768268228254,0.010975,91223.0,91211.0,0.09439878]
[1768268231752,0.010975,91226.0,91211.0,0.09439878]
[1768268235165,0.010975,91224.0,91211.0,0.09439878]
[1768268236351,0.09876,91233.0,91211.0,0.09439878]
[1768268236657,0.00934725,91232.0,91211.0,0.09439878]
[1768268237464,0.010975,91223.0,91211.0,0.09439878]
[1768268237653,0.010975,91221.0,91211.0,0.09439878]
[1768268241766,0.010976,91215.0,91203.0,0.00016446]
[1768268241970,0.0968422,91213.0,91203.0,0.00016446]
[1768268242268,0.010976,91211.0,91203.0,0.00016446]
[1768268244869,0.00934725,91215.0,91194.0,0.09938649]
[1768268244870,0.010977,91209.0,91194.0,0.09938649]
[1768268245075,0.010977,91209.0,91195.0,0.09876]
[1768268245367,0.010977,91206.0,91191.0,0.09876]
[1768268245566,0.010976,91213.0,91197.0,0.09938649]
[1768268245768,0.010976,91217.0,91201.0,0.09938649]
[1768268246370,0.09876,91223.0,91201.0,0.09938649]
[1768268246562,0.13625198,91222.0,91201.0,0.09938649]
[1768268246762,0.0858662,91220.0,91201.0,0.09938649]
[1768268246963,0.02814473,91219.0,91201.0,0.09938649]
[1768268247871,0.010977,91203.0,91191.0,0.09876]
[1768268248270,0.010977,91203.0,91190.0,0.0858662]
[1768268248565,0.0858662,91211.0,91191.0,0.09876]
[1768268248566,0.10170641,91208.0,91191.0,0.09876]
[1768268248773,0.010975,91222.0,91188.0,0.00241261]
[1768268248774,0.010978,91198.0,91188.0,0.00241261]
[1768268249478,0.010977,91201.0,91188.0,0.00241261]
[1768268249769,0.010978,91198.0,91188.0,0.08827881]
[1768268249975,0.010978,91198.0,91188.0,0.00241261]
[1768268253467,0.010977,91206.0,91188.0,0.08827881]
[1768268253671,0.010977,91206.0,91190.0,0.0858662]
[1768268253872,0.010976,91212.0,91196.0,0.18151794]
[1768268254068,0.010976,91210.0,91200.0,0.0858662]
[1768268254268,0.010977,91208.0,91200.0,0.0858662]
[1768268254469,0.010977,91208.0,91196.0,0.09565174]
[1768268256069,0.109776,91211.0,91196.0,0.09565174]
[1768268256573,0.10961435,91203.0,91188.0,0.00241261]
[1768268256777,0.010978,91200.0,91188.0,0.00241261]
[1768268257082,0.010978,91198.0,91188.0,0.00241261]
[1768268257375,0.01098,91181.0,91156.0,0.010983]
[1768268257575,0.0858662,91180.0,91163.0,0.0988]
[1768268257778,0.0968462,91180.0,91163.0,0.0988]
[1768268258373,0.19548355,91180.0,91158.0,0.09388378]
[1768268258570,0.19548355,91180.0,91160.0,0.0858662]
[1768268258571,0.09873124,91179.0,91160.0,0.0858662]
[1768268259282,0.01098,91177.0,91160.0,0.0858662]
[1768268259872,0.10961735,91177.0,91159.0,0.0988]
[1768268260080,0.10961735,91177.0,91160.0,0.0858662]
[1768268260884,0.00125,91165.0,91160.0,0.0858662]
[1768268261181,0.00125,91165.0,91159.0,0.0988]
[1768268262579,0.00125,91165.0,91157.0,0.0988]
[1768268262781,0.010982,91164.0,91157.0,2e-07]
[1768268262980,0.010982,91164.0,91155.0,0.0988]
[1768268263775,0.010982,91164.0,91152.0,0.09147037]
[1768268263976,0.010982,91164.0,91153.0,0.0988]
[1768268264170,0.010982,91164.0,91150.0,0.0858662]
[1768268264386,0.010982,91164.0,91151.0,0.0988]
[1768268265186,0.00125,91165.0,91151.0,0.0988]
[1768268265771,0.00125,91165.0,91150.0,0.0858662]
[1768268265978,0.00125,91165.0,91151.0,0.0988]
[1768268266178,0.012232,91165.0,91151.0,0.0988]
[1768268266391,0.010981,91168.0,91152.0,0.09147037]
[1768268267883,0.0858662,91170.0,91152.0,0.09147037]
[1768268268186,0.0858662,91170.0,91145.0,0.00548579]
[1768268268187,0.10962135,91151.0,91125.0,0.00558137]
[1768268268386,0.0858662,91140.0,91126.0,0.09147037]
[1768268268582,0.010984,91149.0,91130.0,0.17733657]
[1768268268890,0.00016455,91143.0,91131.0,0.09147037]
[1768268271788,9.092e-05,91150.0,91131.0,0.09147037]
[1768268273495,0.010984,91149.0,91131.0,0.09147037]
[1768268274300,0.010984,91147.0,91131.0,0.09147037]
[1768268274589,9.092e-05,91150.0,91131.0,0.09147037]
[1768268274987,0.010984,91149.0,91131.0,0.09147037]
[1768268275188,9.092e-05,91150.0,91131.0,0.09147037]
[1768268275390,0.01107492,91150.0,91131.0,0.09147037]
[1768268276691,0.09863735,91165.0,91131.0,0.10245637]
[1768268276897,0.010983,91155.0,91133.0,0.0816414]
[1768268277099,0.010984,91149.0,91135.0,0.08100691]
[1768268277298,0.010983,91154.0,91135.0,0.08100691]
[1768268278099,0.010984,91151.0,91135.0,0.08100691]
[1768268278308,0.09863735,91156.0,91135.0,0.08100691]
[1768268278707,0.010983,91154.0,91135.0,0.08100691]
[1768268278908,0.04962035,91156.0,91135.0,0.08100691]
[1768268279299,0.04962035,91156.0,91136.0,0.00016455]
[1768268279500,0.10786266,91164.0,91136.0,0.09163492]
[1768268279695,0.04786266,91164.0,91136.0,0.09163492]
[1768268280008,0.010983,91157.0,91136.0,0.09163492]
[1768268280400,0.07095067,91179.0,91138.0,0.09147037]
[1768268280401,0.00902266,91177.0,91138.0,0.09147037]
[1768268280603,0.09884,91176.0,91148.0,0.09147037]
[1768268280807,0.09863735,91176.0,91148.0,0.09147037]
[1768268281099,0.010981,91170.0,91148.0,0.09147037]
[1768268281404,0.010982,91168.0,91148.0,0.09147037]
[1768268281714,0.10766001,91174.0,91148.0,0.09147037]
[1768268281908,0.010982,91164.0,91148.0,0.09147037]
[1768268282509,0.010982,91164.0,91144.0,0.09884]
[1768268282901,0.10766001,91161.0,91142.0,0.09884]
[1768268283105,0.09863735,91161.0,91142.0,0.09884]
[1768268283905,0.010982,91162.0,91142.0,0.19031037]
[1768268284104,0.010982,91162.0,91143.0,0.09147037]
[1768268284810,0.09863735,91167.0,91143.0,0.09147037]
[1768268286415,0.010982,91162.0,91143.0,0.09147037]
[1768268286915,0.010982,91165.0,91143.0,0.09147037]
[1768268287108,0.010982,91162.0,91143.0,0.09147037]
[1768268287416,0.10852834,91167.0,91143.0,0.09147037]
[1768268287621,0.010982,91162.0,91143.0,0.10245437]
[1768268287805,0.010982,91165.0,91145.0,0.010984]
[1768268288112,0.10621943,91166.0,91145.0,0.010984]
[1768268288312,0.010982,91164.0,91145.0,0.010984]
[1768268288507,0.010982,91164.0,91146.0,0.00016455]
[1768268290619,0.010982,91162.0,91146.0,0.00016455]
[1768268292124,0.00989099,91165.0,91146.0,0.00016455]
[1768268292312,0.010983,91156.0,91146.0,0.00016455]
[1768268293424,0.010983,91159.0,91146.0,0.00016455]
[1768268294627,0.010982,91161.0,91146.0,0.00016455]
[1768268295017,0.09055572,91163.0,91146.0,0.00016455]
[1768268295415,0.010983,91159.0,91146.0,0.00016455]
[1768268295922,0.09055572,91163.0,91146.0,0.00016455]
[1768268296719,0.010982,91162.0,91146.0,0.00016455]
[1768268297018,0.00981861,91162.0,91146.0,0.00016455]
[1768268297322,0.10037433,91162.0,91146.0,0.00016455]
[1768268298125,0.10037433,91162.0,91147.0,0.010984]
[1768268299927,0.10037433,91162.0,91149.0,0.010984]
[1768268300812,0.10037433,91162.0,91146.0,0.00016455]
[1768268301518,0.00981861,91161.0,91146.0,0.00016455]
[1768268301716,0.10037433,91160.0,91147.0,0.010984]
[1768268303321,0.00981861,91164.0,91147.0,0.010984]
[1768268303527,0.10037433,91164.0,91147.0,0.010984]
[1768268303724,0.00548459,91165.0,91146.0,0.09350633]
[1768268303930,0.08928153,91199.0,91151.0,0.09334178]
[1768268303931,0.10037433,91178.0,91151.0,0.09334178]
[1768268304221,0.01098,91177.0,91159.0,0.010982]
[1768268304428,0.10153572,91177.0,91159.0,0.010982]
[1768268304613,0.11135633,91166.0,91146.0,0.00016455]
[1768268304813,0.09055572,91162.0,91150.0,0.010984]
[1768268305019,0.010982,91161.0,91147.0,0.09884]
[1768268305226,0.11135633,91161.0,91148.0,0.09884]
[1768268305439,0.09055572,91159.0,91148.0,0.09884]
[1768268306825,0.10037433,91159.0,91148.0,0.09884]
[1768268307419,0.09055572,91159.0,91148.0,0.09884]
[1768268308925,0.00981861,91163.0,91149.0,0.010984]
[1768268309119,0.09055572,91164.0,91148.0,0.109824]
[1768268309321,0.09055572,91164.0,91151.0,0.010983]
[1768268309521,0.010981,91172.0,91155.0,0.010983]
[1768268309828,0.010981,91173.0,91157.0,0.010983]
[1768268310827,0.010981,91171.0,91152.0,0.010983]
[1768268311027,0.11135533,91171.0,91152.0,0.010983]
[1768268311429,0.010981,91169.0,91152.0,0.010983]
[1768268311732,0.11135533,91169.0,91149.0,0.010984]
[1768268311928,0.10153772,91165.0,91148.0,0.09884]
[1768268312234,0.10153772,91165.0,91146.0,0.10449033]
[1768268312430,0.09055572,91163.0,91147.0,0.09884]
[1768268312731,0.09055572,91163.0,91148.0,0.010984]
[1768268313322,0.09055572,91163.0,91149.0,0.09884]
[1768268314536,0.10028122,91163.0,91149.0,0.09884]
[1768268315034,0.09055572,91163.0,91150.0,0.010984]
[1768268317235,0.10889523,91167.0,91150.0,0.010984]
[1768268317534,0.10889523,91167.0,91152.0,0.010983]
[1768268317733,0.09916973,91176.0,91155.0,0.09656175]
[1768268317929,0.010981,91174.0,91158.0,0.09656175]
[1768268318232,0.09916973,91166.0,91145.0,0.09656175]
[1768268318434,0.11015173,91165.0,91147.0,1.047]
[1768268318623,0.11015173,91165.0,91147.0,1.16767461]
[1768268318826,0.09916973,91163.0,91147.0,1.15669061]
[1768268321937,0.010982,91167.0,91148.0,0.010984]
[1768268322940,0.09916973,91168.0,91150.0,0.010984]
[1768268325026,0.010982,91167.0,91150.0,0.010984]
[1768268325543,0.010982,91167.0,91148.0,0.09656175]
[1768268325740,0.010982,91167.0,91149.0,0.010984]
[1768268326040,0.11015173,91167.0,91149.0,0.010984]
[1768268327144,0.11987723,91165.0,91147.0,1.047]
[1768268327339,0.11015173,91163.0,91147.0,1.047]
[1768268327529,0.09916973,91163.0,91148.0,0.10969964]
[1768268327934,0.09916973,91163.0,91149.0,0.09884]
[1768268327935,0.10889523,91163.0,91149.0,0.09884]
[1768268328639,0.09916973,91163.0,91149.0,0.109824]
[1768268329233,0.09916973,91159.0,91146.0,0.01114855]
[1768268329435,0.09916973,91159.0,91147.0,1.04696]
[1768268330143,0.0097255,91174.0,91150.0,0.010984]
[1768268330349,0.010981,91173.0,91155.0,0.09656175]
[1768268330533,0.010981,91174.0,91155.0,0.09656175]
[1768268331939,0.010981,91174.0,91155.0,0.10754475]
[1768268333548,0.10889523,91176.0,91157.0,0.010983]
[1768268333750,0.10889523,91176.0,91155.0,0.09656175]
[1768268333751,0.010981,91173.0,91158.0,0.09884]
[1768268333950,0.11014973,91176.0,91158.0,0.09884]
[1768268334253,0.010981,91173.0,91158.0,0.09884]
[1768268334456,0.11014973,91176.0,91158.0,0.09884]
[1768268334953,0.09916973,91176.0,91158.0,0.09884]
[1768268335155,0.10889523,91176.0,91158.0,0.09884]
[1768268335344,0.010981,91175.0,91158.0,0.09884]
[1768268336951,0.010981,91173.0,91158.0,0.09884]
[1768268340156,0.010981,91173.0,91158.0,0.19540175]
[1768268340453,0.010981,91173.0,91159.0,0.09656175]
[1768268341950,0.10889523,91177.0,91158.0,0.09884]
[1768268345459,0.09620881,91185.0,91167.0,0.08594856]
[1768268345656,0.09620881,91185.0,91168.0,0.09884]
[1768268345862,0.09620881,91185.0,91161.0,0.09902086]
[1768268345863,0.09072542,91184.0,91169.0,0.09884]
[1768268346057,0.01098,91176.0,91169.0,0.09884]
[1768268346659,0.010981,91174.0,91169.0,0.09884]
[1768268346860,0.010981,91172.0,91170.0,0.09884]
[1768268347060,0.010981,91172.0,91160.0,0.08594856]
[1768268347061,0.010981,91172.0,91169.0,0.09884]
[1768268347261,0.010981,91172.0,91168.0,0.09884]
[1768268347465,0.010981,91172.0,91166.0,0.09884]
[1768268348160,0.010981,91175.0,91166.0,0.09884]
[1768268349164,0.010981,91173.0,91166.0,0.09884]
[1768268349968,0.01098,91177.0,91166.0,0.09884]
[1768268356664,0.09692856,91180.0,91166.0,0.09884]
[1768268357168,0.08594856,91180.0,91166.0,0.09884]
[1768268357662,0.01098,91184.0,91170.0,0.08594856]
[1768268357974,0.00548339,91185.0,91170.0,0.08594856]